[Event "DVM U14w 2019"]
[Site "Neumuenster"]
[Date "2019.12.27"]
[Round "2"]
[White "Moradi, Yakta"]
[Black "Lenger, Julia"]
[Result "1-0"]
[ECO "C00"]
[WhiteElo "1257"]
[BlackElo "856"]
[Annotator "NA"]
[PlyCount "84"]
[EventDate "2019.12.27"]
[EventType "team-tourn"]
[EventRounds "7"]
[EventCountry "GER"]
[SourceTitle "playchess.com"]
[Source "ChessBase"]
[SourceQuality "1"]
[WhiteTeam "SV Traktor Priestewitz"]
[BlackTeam "SC Papenburg"]
[TimeControl "40/5400+30:1800+30"]

1. e4 {[%emt 0:00:00]} e6 {[%emt 0:00:00]} 2. Nf3 {[%emt 0:00:00]} d5 {[%emt 0:00:00]} 3. exd5 {[%emt 0:00:00]} exd5 {[%emt 0:00:10]} 4. d4 {[%emt 0:00:00]} Nf6 {[%emt 0:00:20]} 5. Bg5 {[%emt 0:00:14]} Bg4 {[%emt 0:00:39]} 6. Be2 {[%emt 0:00:33]} Be7 {[%emt 0:01:25]} 7. Nc3 {[%emt 0:01:25]} c6 {[%emt 0:02:09]} 8. h3 {[%emt 0:07:43]} Bxf3 {[%emt 0:02:41]} 9. Bxf3 {[%emt 0:00:15]} Nbd7 {[%emt 0:01:13]} 10. Qd3 {[%emt 0:04:54]} Qc7 {[%emt 0:01:30]} 11. Bh4 {[%emt 0:03:19]} O-O-O {[%emt 0:02:11]} 12. O-O-O {[%emt 0:00:57]} h6 {[%emt 0:02:17]} 13. Bg3 {[%emt 0:00:13]} Bd6 {[%emt 0:01:30]} 14. Bxd6 {[%emt 0:00:44]} Qxd6 {[%emt 0:00:37]} 15. Rde1 {[%emt 0:06:48]} Rhe8 {[%emt 0:01:17]} 16. Rxe8 {[%emt 0:08:50]} Rxe8 {[%emt 0:00:50]} 17. Qd2 {[%emt 0:01:43]} Nb6 {[%emt 0:06:31]} 18. Re1 {[%emt 0:01:31]} Rxe1+ {[%emt 0:01:16]} 19. Qxe1 {[%emt 0:00:28]} Kb8 {[%emt 0:02:07]} 20. Kb1 {[%emt 0:00:24]} Nc4 {[%emt 0:07:00]} 21. b3 {[%emt 0:01:44]} Nb6 {[%emt 0:00:53]} 22. Qe2 {[%emt 0:03:03]} Qb4 {[%emt 0:00:49]} 23. Qe5+ {[%emt 0:01:05]} Kc8 {[%emt 0:01:03]} 24. Qe3 {[%emt 0:01:11]} Nc4 {[%emt 0:14:44]} 25. Qd3 {[%emt 0:00:37]} Nd7 {[%emt 0:01:51]} 26. Kc1 {[%emt 0:00:56]} Qa3+ {[%emt 0:02:06]} 27. Kd1 {[%emt 0:00:10]} Nb2+ {[%emt 0:00:32]} 28. Kd2 {[%emt 0:00:04]} Nxd3 {[%emt 0:00:27]} 29. Kxd3 {[%emt 0:00:02]} Qa6+ {[%emt 0:01:44]} 30. Kd2 {[%emt 0:00:08]} Nf6 {[%emt 0:01:00]} 31. Be2 {[%emt 0:00:05]} Qa5 {[%emt 0:01:15]} 32. Kd3 {[%emt 0:00:28]} c5 {[%emt 0:01:32]} 33. Nxd5 {[%emt 0:00:39]} Nxd5 {[%emt 0:00:53]} 34. Bg4+ {[%emt 0:00:10]} Kc7 {[%emt 0:00:30]} 35. c4 {[%emt 0:00:26]} Qc3+ {[%emt 0:00:55]} 36. Ke2 {[%emt 0:00:34]} Nf4+ {[%emt 0:01:56]} 37. Kd1 {[%emt 0:00:25]} cxd4 {[%emt 0:00:50]} 38. g3 {[%emt 0:00:32]} Ng2 {[%emt 0:01:41]} 39. Bf3 {[%emt 0:00:22]} Qxf3+ {[%emt 0:00:26]} 40. Kc2 {[%emt 0:00:21]} Qc3+ {[%emt 0:00:30]} 41. Kd1 {[%emt 0:30:14]} d3 {[%emt 0:30:33]} 42. a4 {[%emt 0:00:07]} Qe1# {normal} 1-0

[Event "DVM U14w 2019"]
[Site "Neumuenster"]
[Date "2019.12.27"]
[Round "2"]
[White "Mai, Mariella"]
[Black "Zöllner, Bente"]
[Result "0-1"]
[ECO "A02"]
[WhiteElo "1232"]
[BlackElo "1630"]
[Annotator "NA"]
[PlyCount "78"]
[EventDate "2019.12.27"]
[EventType "team-tourn"]
[EventRounds "7"]
[EventCountry "GER"]
[SourceTitle "playchess.com"]
[Source "ChessBase"]
[SourceQuality "1"]
[WhiteTeam "SV Traktor Priestewitz"]
[BlackTeam "SC Papenburg"]
[TimeControl "40/5400+30:1800+30"]

1. f4 {[%emt 0:00:00]} c5 {[%emt 0:00:00]} 2. e4 {[%emt 0:00:00]} Nc6 {[%emt 0:00:00]} 3. Nf3 {[%emt 0:00:00]} g6 {[%emt 0:00:00]} 4. d4 {[%emt 0:00:15]} cxd4 {[%emt 0:00:33]} 5. Nxd4 {[%emt 0:00:13]} Bg7 {[%emt 0:00:15]} 6. Nxc6 {[%emt 0:00:25]} bxc6 {[%emt 0:00:38]} 7. Be2 {[%emt 0:00:46]} Nf6 {[%emt 0:01:31]} 8. e5 {[%emt 0:00:54]} Nd5 {[%emt 0:00:26]} 9. Bf3 {[%emt 0:00:56]} Bb7 {[%emt 0:03:50]} 10. c4 {[%emt 0:01:01]} Nb6 {[%emt 0:00:40]} 11. b3 {[%emt 0:00:30]} d6 {[%emt 0:02:02]} 12. Bb2 {[%emt 0:03:54]} Nd7 {[%emt 0:02:59]} 13. Qe2 {[%emt 0:00:48]} dxe5 {[%emt 0:01:01]} 14. fxe5 {[%emt 0:00:12]} Nxe5 {[%emt 0:04:12]} 15. Bxe5 {[%emt 0:00:19]} Qa5+ {[%emt 0:00:12]} 16. Nd2 {[%emt 0:01:53]} Bxe5 {[%emt 0:00:51]} 17. Rb1 {[%emt 0:00:23]} Bf6 {[%emt 0:03:50]} 18. O-O {[%emt 0:00:36]} Qxa2 {[%emt 0:04:31]} 19. Bxc6+ {[%emt 0:00:23]} Bxc6 {[%emt 0:01:54]} 20. Rxf6 {[%emt 0:00:07]} Bd7 {[%emt 0:04:00]} 21. Re1 {[%emt 0:00:27]} O-O {[%emt 0:01:15]} 22. Rf2 {[%emt 0:00:28]} Be6 {[%emt 0:01:11]} 23. Qf3 {[%emt 0:01:12]} Rab8 {[%emt 0:01:35]} 24. Qg3 {[%emt 0:00:34]} Rfc8 {[%emt 0:02:33]} 25. Qh4 {[%emt 0:01:48]} Rd8 {[%emt 0:07:25]} 26. Qh6 {[%emt 0:00:22]} Qb2 {[%emt 0:01:08]} 27. Ne4 {[%emt 0:00:49]} Qg7 {[%emt 0:00:44]} 28. Qh4 {[%emt 0:02:03]} Rxb3 {[%emt 0:04:13]} 29. Nc5 {[%emt 0:00:13]} Rb6 {[%emt 0:01:27]} 30. Qxe7 {[%emt 0:00:55]} Qf8 {[%emt 0:05:34]} 31. Qg5 {[%emt 0:00:21]} Bxc4 {[%emt 0:03:16]} 32. Ne4 {[%emt 0:00:19]} Re6 {[%emt 0:03:17]} 33. Qh4 {[%emt 0:01:40]} Kg7 {[%emt 0:07:20]} 34. Rf6 {[%emt 0:01:32]} Rde8 {[%emt 0:05:37]} 35. Rxe6 {[%emt 0:02:17]} Rxe6 {[%emt 0:01:02]} 36. Ng5 {[%emt 0:00:34]} Qc5+ {[%emt 0:01:02]} 37. Kh1 {[%emt 0:00:39]} Qxg5 {[%emt 0:03:07]} 38. Qd4+ {[%emt 0:00:26]} Qf6 {[%emt 0:00:37]} 39. Qd1 {[%emt 0:03:25]} Rxe1+ {[%emt 0:00:51] normal} 0-1

[Event "DVM U14w 2019"]
[Site "Neumuenster"]
[Date "2019.12.27"]
[Round "2"]
[White "Heintz, Lilly"]
[Black "Werner, Rosalie"]
[Result "0-1"]
[ECO "D37"]
[WhiteElo "1219"]
[BlackElo "1674"]
[Annotator "NA"]
[PlyCount "59"]
[EventDate "2019.12.27"]
[EventType "team-tourn"]
[EventRounds "7"]
[EventCountry "GER"]
[SourceTitle "playchess.com"]
[Source "ChessBase"]
[SourceQuality "1"]
[WhiteTeam "SC Leipzig-Lindenau"]
[BlackTeam "VSG 1880 Offenbach"]
[TimeControl "40/5400+30:1800+30"]

1. d4 {[%emt 0:00:00]} e6 {[%emt 0:00:00]} 2. Nf3 {[%emt 0:00:00]} d5 {[%emt 0:00:00]} 3. c4 {[%emt 0:01:19]} Nf6 {[%emt 0:00:07]} 4. Nc3 {[%emt 0:00:15]} Be7 {[%emt 0:00:39]} 5. Bf4 {[%emt 0:01:41]} c6 {[%emt 0:00:40]} 6. e3 {[%emt 0:00:33]} Nbd7 {[%emt 0:00:53]} 7. cxd5 {[%emt 0:04:20]} exd5 {[%emt 0:00:22]} 8. g3 {[%emt 0:03:23]} O-O {[%emt 0:03:12]} 9. Bg2 {[%emt 0:00:27]} Qb6 {[%emt 0:01:28]} 10. Qc2 {[%emt 0:05:24]} Re8 {[%emt 0:03:46]} 11. O-O {[%emt 0:00:22]} Nf8 {[%emt 0:04:29]} 12. Rfe1 {[%emt 0:03:30]} Ne6 {[%emt 0:04:02]} 13. Ne2 {[%emt 0:01:27]} Ne4 {[%emt 0:01:50]} 14. Ne5 {[%emt 0:02:39]} g5 {[%emt 0:02:16]} 15. Bxe4 {[%emt 0:05:22]} dxe4 {[%emt 0:00:23]} 16. Qxe4 {[%emt 0:01:35]} Ng7 {[%emt 0:01:41]} 17. b3 {[%emt 0:08:08]} gxf4 {[%emt 0:00:35]} 18. Nxf4 {[%emt 0:01:28]} Bd6 {[%emt 0:00:54]} 19. Qg2 {[%emt 0:05:14]} Bxe5 {[%emt 0:00:55]} 20. dxe5 {[%emt 0:01:27]} Rxe5 {[%emt 0:00:27]} 21. Rad1 {[%emt 0:01:18]} Bf5 {[%emt 0:00:40]} 22. h4 {[%emt 0:00:57]} Rd8 {[%emt 0:00:18]} 23. Qf1 {[%emt 0:03:06]} Re7 {[%emt 0:01:11]} 24. Kh2 {[%emt 0:02:11]} Rxd1 {[%emt 0:03:28]} 25. Rxd1 {[%emt 0:00:27]} Rd7 {[%emt 0:00:24]} 26. Re1 {[%emt 0:02:00]} Rd2 {[%emt 0:00:20]} 27. Re2 {[%emt 0:02:27]} Qd8 {[%emt 0:01:09]} 28. Qa1 {[%emt 0:05:23]} Be4 {[%emt 0:02:57]} 29. Qc1 {[%emt 0:06:34]} Rd1 {[%emt 0:00:14]} 30. Qxd1 {normal} 0-1

[Event "DVM U14w 2019"]
[Site "Neumuenster"]
[Date "2019.12.27"]
[Round "2"]
[White "Halas, Neele Zoe"]
[Black "Hafermann, Lara"]
[Result "0-1"]
[ECO "B00"]
[WhiteElo "1076"]
[BlackElo "1161"]
[Annotator "NA"]
[PlyCount "116"]
[EventDate "2019.12.27"]
[EventType "team-tourn"]
[EventRounds "7"]
[EventCountry "GER"]
[SourceTitle "playchess.com"]
[Source "ChessBase"]
[SourceQuality "1"]
[WhiteTeam "SG Leipzig"]
[BlackTeam "SC Borussia Lichtenberg"]
[TimeControl "40/5400+30:1800+30"]

1. e4 {[%emt 0:00:00]} b6 {[%emt 0:00:00]} 2. d4 {[%emt 0:00:23]} Bb7 {[%emt 0:00:00]} 3. Nc3 {[%emt 0:01:06]} e6 {[%emt 0:00:00]} 4. Bc4 {[%emt 0:02:24]} Nf6 {[%emt 0:00:04]} 5. Qf3 {[%emt 0:05:36]} Bb4 {[%emt 0:00:37]} 6. Nge2 {[%emt 0:01:37]} Nxe4 {[%emt 0:01:22]} 7. O-O {[%emt 0:02:20]} Nxc3 {[%emt 0:00:44]} 8. Qxb7 {[%emt 0:00:46]} Nxe2+ {[%emt 0:00:05]} 9. Bxe2 {[%emt 0:00:20]} Nc6 {[%emt 0:00:09]} 10. c3 {[%emt 0:00:44]} Be7 {[%emt 0:01:11]} 11. Bf3 {[%emt 0:01:06]} O-O {[%emt 0:03:05]} 12. Bxc6 {[%emt 0:00:24]} dxc6 {[%emt 0:00:04]} 13. Qxc6 {[%emt 0:00:09]} Qd6 {[%emt 0:00:37]} 14. Qxd6 {[%emt 0:00:30]} Bxd6 {[%emt 0:00:09]} 15. Be3 {[%emt 0:01:07]} Rac8 {[%emt 0:02:54]} 16. Rad1 {[%emt 0:02:16]} Rfd8 {[%emt 0:06:53]} 17. Rfe1 {[%emt 0:04:05]} Rd7 {[%emt 0:00:24]} 18. f3 {[%emt 0:01:42]} Rcd8 {[%emt 0:00:16]} 19. Bf2 {[%emt 0:00:33]} c5 {[%emt 0:02:57]} 20. dxc5 {[%emt 0:06:42]} Bxh2+ {[%emt 0:02:13]} 21. Kxh2 {[%emt 0:00:31]} Rxd1 {[%emt 0:00:05]} 22. Rxd1 {[%emt 0:00:52]} Rxd1 {[%emt 0:00:05]} 23. cxb6 {[%emt 0:00:18]} axb6 {[%emt 0:00:05]} 24. Bxb6 {[%emt 0:00:14]} Rd2 {[%emt 0:00:04]} 25. b4 {[%emt 0:00:40]} Rxa2 {[%emt 0:00:13]} 26. c4 {[%emt 0:00:48]} Rb2 {[%emt 0:00:22]} 27. Ba5 {[%emt 0:00:51]} Kf8 {[%emt 0:00:38]} 28. c5 {[%emt 0:00:33]} Ke7 {[%emt 0:00:26]} 29. c6 {[%emt 0:01:05]} h5 {[%emt 0:00:37]} 30. c7 {[%emt 0:00:18]} Kd7 {[%emt 0:00:05]} 31. Kh3 {[%emt 0:00:30]} g5 {[%emt 0:00:19]} 32. g3 {[%emt 0:01:43]} e5 {[%emt 0:02:28]} 33. g4 {[%emt 0:01:20]} hxg4+ {[%emt 0:00:09]} 34. Kxg4 {[%emt 0:00:13]} f6 {[%emt 0:00:38]} 35. Kf5 {[%emt 0:00:29]} Rb3 {[%emt 0:02:23]} 36. Kg4 {[%emt 0:00:55]} Rc3 {[%emt 0:01:32]} 37. Kg3 {[%emt 0:00:22]} Rc4 {[%emt 0:00:25]} 38. Kf2 {[%emt 0:00:58]} e4 {[%emt 0:00:40]} 39. fxe4 {[%emt 0:00:46]} Rxe4 {[%emt 0:00:04]} 40. b5 {[%emt 0:00:45]} Re5 {[%emt 0:00:07]} 41. Kg3 {[%emt 0:30:12]} Rxb5 {[%emt 0:30:10]} 42. c8=Q+ {[%emt 0:00:15]} Kxc8 {[%emt 0:00:11]} 43. Bb4 {[%emt 0:00:15]} Rxb4 {[%emt 0:00:08]} 44. Kf3 {[%emt 0:00:08]} Kc7 {[%emt 0:00:07]} 45. Ke3 {[%emt 0:00:09]} Kc6 {[%emt 0:00:05]} 46. Kf3 {[%emt 0:00:14]} Kd5 {[%emt 0:00:08]} 47. Ke3 {[%emt 0:00:06]} Rf4 {[%emt 0:00:12]} 48. Kd3 {[%emt 0:00:10]} Re4 {[%emt 0:00:06]} 49. Kc3 {[%emt 0:00:10]} Rd4 {[%emt 0:00:07]} 50. Kc2 {[%emt 0:00:16]} Kc4 {[%emt 0:00:04]} 51. Kb2 {[%emt 0:00:14]} Rd3 {[%emt 0:00:03]} 52. Kc2 {[%emt 0:03:09]} g4 {[%emt 0:00:09]} 53. Kb2 {[%emt 0:00:07]} Rc3 {[%emt 0:00:08]} 54. Ka1 {[%emt 0:00:43]} Rb3 {[%emt 0:00:12]} 55. Ka2 {[%emt 0:00:14]} Kc3 {[%emt 0:00:04]} 56. Ka1 {[%emt 0:00:15]} Kc2 {[%emt 0:00:05]} 57. Ka2 {[%emt 0:00:10]} g3 {[%emt 0:00:03]} 58. Ka1 {[%emt 0:00:12]} Ra3# {normal} 0-1

[Event "DVM U14w 2019"]
[Site "Neumuenster"]
[Date "2019.12.27"]
[Round "2"]
[White "Gyácsok, Dzvinka"]
[Black "Voigt, Anastasia"]
[Result "0-1"]
[ECO "C50"]
[WhiteElo "997"]
[BlackElo "1511"]
[Annotator "NA"]
[PlyCount "84"]
[EventDate "2019.12.27"]
[EventType "team-tourn"]
[EventRounds "7"]
[EventCountry "GER"]
[SourceTitle "playchess.com"]
[Source "ChessBase"]
[SourceQuality "1"]
[WhiteTeam "SV Multatuli Ingelheim"]
[BlackTeam "USV Halle"]
[TimeControl "40/5400+30:1800+30"]

1. e4 {[%emt 0:00:00]} e5 {[%emt 0:00:00]} 2. Nf3 {[%emt 0:00:00]} Nc6 {[%emt 0:00:00]} 3. Bc4 {[%emt 0:00:00]} Bc5 {[%emt 0:00:00]} 4. Nc3 {[%emt 0:00:00]} Nf6 {[%emt 0:00:06]} 5. d3 {[%emt 0:00:03]} d6 {[%emt 0:00:49]} 6. h3 {[%emt 0:00:07]} h6 {[%emt 0:00:14]} 7. Be3 {[%emt 0:00:10]} Bb6 {[%emt 0:00:50]} 8. Nh4 {[%emt 0:01:09]} Nxe4 {[%emt 0:01:56]} 9. Bxf7+ {[%emt 0:03:47]} Kxf7 {[%emt 0:04:10]} 10. Qf3+ {[%emt 0:01:09]} Nf6 {[%emt 0:00:26]} 11. Nd5 {[%emt 0:00:43]} Rf8 {[%emt 0:01:00]} 12. Nxf6 {[%emt 0:01:51]} Qxf6 {[%emt 0:00:18]} 13. Qxf6+ {[%emt 0:03:39]} gxf6 {[%emt 0:01:02]} 14. Bxb6 {[%emt 0:00:47]} axb6 {[%emt 0:00:09]} 15. a3 {[%emt 0:00:15]} Nd4 {[%emt 0:01:23]} 16. O-O-O {[%emt 0:00:31]} Be6 {[%emt 0:00:38]} 17. Rd2 {[%emt 0:03:27]} Bd5 {[%emt 0:00:49]} 18. c3 {[%emt 0:01:06]} Nb3+ {[%emt 0:00:06]} 19. Kc2 {[%emt 0:01:09]} Nxd2 {[%emt 0:00:05]} 20. Kxd2 {[%emt 0:00:15]} Rg8 {[%emt 0:00:13]} 21. Rg1 {[%emt 0:00:16]} Be6 {[%emt 0:00:30]} 22. g4 {[%emt 0:00:34]} h5 {[%emt 0:01:21]} 23. f3 {[%emt 0:00:26]} hxg4 {[%emt 0:00:29]} 24. fxg4 {[%emt 0:00:14]} Rh8 25. Nf3 {[%emt 0:02:55]} Rxh3 {[%emt 0:00:26]} 26. Ke3 {[%emt 0:00:16]} Bd5 {[%emt 0:01:04]} 27. Rf1 {[%emt 0:00:21]} Rg8 {[%emt 0:00:19]} 28. c4 {[%emt 0:00:27]} Bc6 {[%emt 0:00:25]} 29. Ke2 {[%emt 0:02:50]} Rxg4 {[%emt 0:00:55]} 30. Ng1 {[%emt 0:00:06]} Rg2+ {[%emt 0:00:32]} 31. Ke1 {[%emt 0:01:07]} Rxd3 {[%emt 0:00:40]} 32. Ne2 {[%emt 0:00:26]} Re3 {[%emt 0:01:09]} 33. Rf2 {[%emt 0:03:39]} Rxf2 {[%emt 0:00:20]} 34. Kxf2 {[%emt 0:00:16]} Rb3 {[%emt 0:00:04]} 35. Nc1 {[%emt 0:01:50]} Rxb2+ {[%emt 0:00:06]} 36. Kg3 {[%emt 0:00:03]} Rg2+ {[%emt 0:00:00]} 37. Kh4 {[%emt 0:00:11]} Kg6 {[%emt 0:00:42]} 38. Nd3 {[%emt 0:00:12]} Kf5 {[%emt 0:00:23]} 39. Ne1 {[%emt 0:00:31]} Rg1 {[%emt 0:00:25]} 40. Nc2 {[%emt 0:00:41]} e4 {[%emt 0:00:46]} 41. Ne3+ {[%emt 0:30:14]} Kf4 {[%emt 0:30:12]} 42. Nc2 {[%emt 0:00:56]} Rh1# {[%emt 0:00:05] normal} 0-1

[Event "DVM U14w 2019"]
[Site "Neumuenster"]
[Date "2019.12.27"]
[Round "2"]
[White "Kießling, Luisa"]
[Black "Dixon, Laura Michaela"]
[Result "0-1"]
[ECO "C50"]
[WhiteElo "865"]
[BlackElo "1310"]
[Annotator "NA"]
[PlyCount "26"]
[EventDate "2019.12.27"]
[EventType "team-tourn"]
[EventRounds "7"]
[EventCountry "GER"]
[SourceTitle "playchess.com"]
[Source "ChessBase"]
[SourceQuality "1"]
[WhiteTeam "SC Leipzig-Lindenau"]
[BlackTeam "VSG 1880 Offenbach"]
[TimeControl "40/5400+30:1800+30"]

1. e4 {[%emt 0:00:00]} e5 {[%emt 0:00:00]} 2. Nf3 {[%emt 0:00:00]} Nc6 {[%emt 0:00:00]} 3. Bc4 {[%emt 0:00:03]} Bc5 {[%emt 0:00:07]} 4. O-O {[%emt 0:00:17]} d6 {[%emt 0:00:17]} 5. Nc3 {[%emt 0:00:16]} Bg4 {[%emt 0:00:12]} 6. h3 {[%emt 0:00:06]} Bh5 {[%emt 0:00:23]} 7. d3 {[%emt 0:00:19]} Nd4 {[%emt 0:00:39]} 8. Bg5 {[%emt 0:00:59]} Nxf3+ {[%emt 0:01:12]} 9. Kh1 {[%emt 0:01:35]} Qxg5 {[%emt 0:00:52]} 10. gxf3 {[%emt 0:01:43]} Qf4 {[%emt 0:03:07]} 11. Kg1 {[%emt 0:02:06]} Bxf3 {[%emt 0:00:27]} 12. Qb1 {[%emt 0:01:01]} Qg5+ {[%emt 0:00:22]} 13. Kh2 {[%emt 0:00:15]} Qg2# {[%emt 0:00:10] normal} 0-1

[Event "DVM U14w 2019"]
[Site "Neumuenster"]
[Date "2019.12.27"]
[Round "2"]
[White "Boutayeb, Malak"]
[Black "Göllnitz, Cölestine"]
[Result "0-1"]
[ECO "C50"]
[WhiteElo "800"]
[BlackElo "800"]
[Annotator "NA"]
[PlyCount "66"]
[EventDate "2019.12.27"]
[EventType "team-tourn"]
[EventRounds "7"]
[EventCountry "GER"]
[SourceTitle "playchess.com"]
[Source "ChessBase"]
[SourceQuality "1"]
[WhiteTeam "VSG 1880 Offenbach"]
[BlackTeam "SC Leipzig-Lindenau"]
[TimeControl "40/5400+30:1800+30"]

1. e4 {[%emt 0:00:00]} e5 {[%emt 0:00:00]} 2. Nf3 {[%emt 0:00:22]} Nc6 {[%emt 0:00:00]} 3. Bc4 {[%emt 0:00:19]} Bc5 {[%emt 0:00:15]} 4. d3 {[%emt 0:00:21]} d6 {[%emt 0:00:10]} 5. Be3 {[%emt 0:00:42]} Bb4+ {[%emt 0:01:38]} 6. c3 {[%emt 0:01:00]} Ba5 {[%emt 0:00:14]} 7. O-O {[%emt 0:00:48]} Bg4 {[%emt 0:01:51]} 8. d4 {[%emt 0:01:30]} Qe7 {[%emt 0:03:32]} 9. Nbd2 {[%emt 0:04:23]} O-O-O {[%emt 0:04:07]} 10. Nb3 {[%emt 0:00:27]} Bb6 {[%emt 0:00:50]} 11. Qd2 {[%emt 0:00:48]} Nf6 {[%emt 0:01:36]} 12. Bd5 {[%emt 0:03:58]} Nxd5 {[%emt 0:03:45]} 13. exd5 {[%emt 0:00:39]} Na5 {[%emt 0:02:27]} 14. c4 {[%emt 0:02:02]} Nxc4 {[%emt 0:00:51]} 15. Qc3 {[%emt 0:00:39]} Nxe3 {[%emt 0:01:09]} 16. fxe3 Rd7 {[%emt 0:02:05]} 17. dxe5 {[%emt 0:03:58]} dxe5 {[%emt 0:00:50]} 18. Nxe5 {[%emt 0:00:11]} Rxd5 {[%emt 0:00:43]} 19. Nxf7 {[%emt 0:05:00]} Bxe3+ {[%emt 0:01:03]} 20. Kh1 {[%emt 0:03:39]} Rf8 {[%emt 0:01:08]} 21. Qc4 {[%emt 0:03:18]} Be6 {[%emt 0:02:33]} 22. Rae1 {[%emt 0:05:26]} Bb6 {[%emt 0:00:39]} 23. Rd1 {[%emt 0:02:44]} c6 {[%emt 0:00:44]} 24. Nd4 {[%emt 0:04:17]} Bxd4 {[%emt 0:01:17]} 25. Rxd4 {[%emt 0:05:50]} Rxf7 {[%emt 0:00:42]} 26. Rfd1 {[%emt 0:07:28]} Rff5 {[%emt 0:02:30]} 27. b4 {[%emt 0:02:57]} b5 {[%emt 0:00:50]} 28. Rc1 {[%emt 0:04:31]} bxc4 {[%emt 0:01:24]} 29. Rdxc4 {[%emt 0:04:06]} c5 {[%emt 0:01:26]} 30. bxc5 {[%emt 0:01:22]} Rxc5 {[%emt 0:00:26]} 31. R4c2 {[%emt 0:03:08]} Qf8 {[%emt 0:00:45]} 32. g4 {[%emt 0:00:54]} Rf1+ {[%emt 0:00:34]} 33. Rxf1 {[%emt 0:00:02]} Qxf1# {[%emt 0:00:15] normal} 0-1

[Event "DVM U14w 2019"]
[Site "Neumuenster"]
[Date "2019.12.28"]
[Round "3"]
[White "Zhou, Lepu Coco"]
[Black "Buchholz, Maja"]
[Result "*"]
[ECO "B53"]
[WhiteElo "1892"]
[BlackElo "1666"]
[Annotator "NA RC"]
[PlyCount "87"]
[EventDate "2019.12.27"]
[EventType "team-tourn"]
[EventRounds "7"]
[EventCountry "GER"]
[SourceTitle "playchess.com"]
[Source "ChessBase"]
[SourceQuality "1"]
[WhiteTeam "USV Halle"]
[BlackTeam "VSG 1880 Offenbach"]
[WhiteTeamCountry "GER"]
[BlackTeamCountry "GER"]
[TimeControl "40/5400+30:1800+30"]

1. e4 {[%emt 0:00:00]} c5 {[%emt 0:00:00]} 2. Nf3 {[%emt 0:00:00]} d6 {[%emt 0:00:00]} 3. d4 {[%emt 0:00:00]} cxd4 {[%emt 0:00:00]} 4. Qxd4 {[%emt 0:00:00]} a6 {[%emt 0:00:00]} 5. c4 {[%emt 0:00:22]} Nf6 {[%emt 0:00:05]} 6. Nc3 {[%emt 0:00:16]} e6 {[%emt 0:00:13]} 7. Be2 {[%emt 0:00:36]} Be7 {[%emt 0:00:15] B53: Sicilian: 2...d6: Lines with Qxd4} 8. O-O {[%emt 0:00:48]} Nbd7 {[%emt 0:00:20]} 9. Be3 {[%emt 0:00:52]} O-O $146 {[%emt 0:00:25]} ({Predecessor:} 9... Qc7 10. Qd2 O-O 11. Nd4 b6 12. Rfc1 Bb7 13. f3 Rac8 14. a4 Ne5 15. a5 bxa5 16. Nb3 Nc6 17. Nd5 exd5 18. cxd5 Qb8 19. dxc6 Bxc6 20. Nxa5 Bb5 21. Nc4 Nd7 22. Bf4 Rc6 {½-½ (36) Wagener,A (2255)-Kosintseva,T (2497) St Petersburg 2009}) 10. b4 {[%emt 0:03:28]} b6 {[%emt 0:00:20]} 11. Na4 {[%emt 0:01:17]} Rb8 {[%emt 0:00:23]} 12. Nd2 {[%emt 0:01:43]} e5 {[%emt 0:03:07] unterminated} 13. Qd3 {[%emt 0:01:08]} h6 {[%emt 0:00:44]} 14. f3 {[%emt 0:00:27] unterminated} Bb7 {[%emt 0:00:38]} 15. Nb3 {[%emt 0:00:55] unterminated} Qc7 {[%emt 0:02:51] unterminated} (15... b5 $1 $11 16. cxb5 axb5) 16. Rac1 {[%emt 0:01:40] unterminated} Rbc8 {[%emt 0:01:22] unterminated} 17. Rfd1 {[%emt 0:04:16] unterminated} Qb8 {[%emt 0:03:44] unterminated} 18. Bxb6 {[%emt 0:08:22] unterminated} Bxe4 {[%emt 0:02:44] unterminated} 19. fxe4 {[%emt 0:04:35] unterminated} Nxb6 {[%emt 0:00:44]} 20. Nb2 {[%emt 0:00:23] unterminated} Rfd8 {[%emt 0:04:58] unterminated} 21. Qe3 {[%emt 0:01:27] unterminated} Nbd7 {[%emt 0:01:30]} 22. a3 {[%emt 0:02:25]} Qb7 {[%emt 0:07:18]} 23. Na5 {[%emt 0:04:59]} Qxe4 {[%emt 0:04:51]} 24. Qxe4 {[%emt 0:00:09]} Nxe4 {[%emt 0:00:05]} 25. Nb7 {[%emt 0:00:11] unterminated} Rf8 {[%emt 0:04:13]} 26. c5 {[%emt 0:00:08] unterminated} Rc7 {[%emt 0:06:17]} 27. cxd6 {[%emt 0:00:36] unterminated} Rxb7 {[%emt 0:03:24]} 28. dxe7 {[%emt 0:00:08] unterminated} Re8 {[%emt 0:02:04]} 29. Bxa6 {[%emt 0:00:15] unterminated} Ra7 {[%emt 0:01:41]} 30. Rc8 {[%emt 0:00:09] unterminated} Ndf6 {[%emt 0:04:37]} 31. Rxe8+ {[%emt 0:03:28] unterminated} Nxe8 {[%emt 0:00:23]} 32. b5 {[%emt 0:00:36] unterminated} f6 {[%emt 0:02:58] unterminated} 33. Rd8 {[%emt 0:01:36] unterminated} Kf7 $18 {[%emt 0:01:41]} 34. b6 {[%emt 0:01:40]} Rxa6 {[%emt 0:01:55]} 35. b7 {[%emt 0:00:06]} Rb6 {[%emt 0:03:19]} 36. b8=Q {[%emt 0:00:07]} Rxb8 {[%emt 0:00:11]} 37. Rxb8 {[%emt 0:00:06]} Kxe7 {[%emt 0:00:29]} 38. Nc4 {[%emt 0:00:09]} Nc5 {[%emt 0:01:17]} 39. Kf2 {[%emt 0:00:41]} Nc7 {[%emt 0:01:15]} 40. Rc8 {[%emt 0:01:22]} N5a6 {[%emt 0:02:23]} 41. Ke3 {[%emt 0:33:09]} Ke6 {[%emt 0:31:50]} 42. Rg8 {[%emt 0:00:57]} Kf7 {[%emt 0:00:18]} 43. Rd8 {[%emt 0:00:12] unterminated} h5 {[%emt 0:02:09] unterminated} 44. Rh8 {[%emt 0:02:17]} *